Cogmind - Beta 17 @@@ ROGUE MODE // 2026.08.02 @ 06:34:44 Player: MrFartsburg Result: Destroyed by B-48 Gladiator with Mace Performance ------------- Evolutions (4) 2000 Regions Visited (4) 800 Robots Destroyed (7) 35 Value Destroyed (314) 314 Prototype IDs (0) 0 Alien Tech Used (0) 0 Bonus (0) 0 TOTAL SCORE: 3149 Bonus ------- None Cogmind --------- Core Integrity 0/850 Matter 300/300 Energy 74/100 System Corruption 6% Temperature Cool (0) Movement Core (50) Location -6/Factory Parts ------- > --- POWER (2) -------- (None) > --- PROPULSION (3) --- (None) > --- UTILITY (7) ------ (None) > --- WEAPON (3) ------- (None) > --- INVENTORY (5) ---- Machine Analyzer Peak State ------------ > --- POWER ------------ Improved Deuterium Engine > --- PROPULSION ------- Armored Huge Wheel > --- UTILITY ---------- Humpback Triangulator Visual Processing Unit IFF Parser ECM Suite Improved Propulsion Shielding > --- WEAPON ----------- Thermic Laser Beam Cannon Battle Rifle > --- INVENTORY -------- Machine Analyzer [Rating: 38] Favorites ----------- Power Light Ion Engine Engine Light Ion Engine Propulsion Compact Wheel Wheel Compact Wheel Utility Small Storage Unit Device Subdweller Optics Storage Small Storage Unit Processor Visual Processing Unit Protection Improved Propulsion Shielding Weapon Beam Cannon Energy Gun Small Laser Energy Cannon Beam Cannon Ballistic Gun Battle Rifle Launcher Grenade Launcher Special Weapon CPS Tube Build | -11 -10 -10 -8 -6 ------- Run | Yrd Mat Sub Scr Fac Slots Evolved 8 | . . . . 8 Power 1 | . . . . 1 Propulsion 1 | . . . . 1 Utility 5 | . . . . 5 Weapon 1 | . . . . 1 Parts Attached 27 | 6 . 10 1 10 Power 3 | 1 . 1 . 1 Engine 3 | 1 . 1 . 1 Core . | . . . . . Reactor . | . . . . . Propulsion 5 | 2 . 2 1 . Treads . | . . . . . Leg . | . . . . . Wheel 5 | 2 . 2 1 . Hover . | . . . . . Flight . | . . . . . Utility 9 | 1 . 2 . 6 Device 4 | . . 1 . 3 Storage 2 | 1 . . . 1 Processor 2 | . . 1 . 1 Hackware . | . . . . . Protection 1 | . . . . 1 Artifact . | . . . . . Weapon 10 | 2 . 5 . 3 Energy Gun 5 | 2 . 2 . 1 Energy Cannon 1 | . . 1 . . Ballistic Gun 2 | . . 1 . 1 Ballistic Cannon . | . . . . . Launcher 1 | . . 1 . . Special Weapon 1 | . . . . 1 Impact Weapon . | . . . . . Slashing Weapon . | . . . . . Piercing Weapon . | . . . . . Special Melee Weapon . | . . . . . Unidentified Prototypes . | . . . . . Parts Lost 17 | . . 6 . 11 Power 3 | . . 2 . 1 Propulsion 1 | . . . . 1 Utility 6 | . . . . 6 Weapon 7 | . . 4 . 3 Highest Loss Streak 10 | . . 2 . 10 To Critical Strikes 1 | . . . . 1 Average Backups 4 | 1 4 6 5 1 Power . | . 1 . . . Propulsion . | . . 1 . . Utility 2 | . 1 3 3 . Weapon 1 | . 2 1 1 . Tool/Special . | . . . . . Unused Backups 4 | . 1 . 2 1 Power . | . . . . . Propulsion . | . . . . . Utility 4 | . 1 . 2 1 Weapon . | . . . . . Tool/Special . | . . . . . Average Slot Usage (%) 75 | . 85 98 54 63 Engine 6 | . 14 13 . 2 Wheel 20 | . 28 28 25 5 Device 11 | . . 9 14 14 Storage 12 | . 14 14 14 9 Processor 3 | . . 4 . 5 Protection 1 | . . . . 5 Energy Gun 9 | . 28 19 . 2 Energy Cannon 3 | . . 3 . 5 Ballistic Gun 2 | . . 3 . 5 Peak Build Rating 38 | 6 7 13 12 38 Average Rating 14 | 4 6 10 7 29 On Entrance 6 | . 6 7 7 12 Avg Prop Armor Cover (%) 5 | . . 5 . . Naked Turns 16 | . . . . 16 Heaviest Build 225 | 11 11 14 10 225 Greatest Support 36 | 32 32 36 32 28 Greatest Overweight (x) 72 | . . . . 72 Average Overweight (x) 1 | . . . . 8 Largest Inventory Capacity 35 | 8 8 8 8 35 Average Capacity 15 | 7 8 8 8 34 Most Carried 8 | 2 8 8 8 6 Average Carried 5 | 1 4 7 7 1 Final Capacity 8 | 8 8 8 8 5 Final Carried 8 | 2 8 8 8 1 Class Distribution -------------------- 72% | Mutant 20% | Hauler-Skirmisher 3% | Hauler-Mutant Dominant Class ---------------- Mutant | -10/Materials Mutant | -10/Subcaves Mutant | -8/Scraptown Hauler-Skirmisher | -6/Factory Resources | -11 -10 -10 -8 -6 ----------- Run | Yrd Mat Sub Scr Fac Matter Collected 608 | 260 . 160 5 183 Remotely . | . . . . . Salvage Created 300 | . . 182 . 118 Parts 20 | . . 13 . 7 Haulers Intercepted . | . . . . . Recyclers Shooed . | . . . . . Parts Field Recycled . | . . . . . Retrieved Matter . | . . . . . Parts Self-Destructed 6 | . . 6 . . Prevented . | . . . . . Parts Restored . | . . . . . Kills | -11 -10 -10 -8 -6 ------- Run | Yrd Mat Sub Scr Fac Combat Hostiles Destroyed 7 | . . 5 . 2 Guns 4 | . . 4 . . AOE 1 | . . 1 . . Classes Destroyed 3 | . . 1 . 2 Sentry 1 | . . . . 1 Programmer 1 | . . . . 1 Subdweller 5 | . . 5 . . Best Kill Streak 2 | . . 2 . 1 Combat Bots Only 2 | . . 2 . 1 Max Kills in Single Turn 1 | . . 1 . 1 Gunslinging . | . . . . . Exploded 1 | . . 1 . . Melee . | . . . . . Uniques/NPCs Destroyed . | . . . . . Combat | -11 -10 -10 -8 -6 -------- Run | Yrd Mat Sub Scr Fac Hostile Shots Fired 258 | . . 55 . 203 Missed 80 | . . 20 . 60 Hits 178 | . . 35 . 143 Melee 7 | . . . . 7 Projectile 171 | . . 35 . 136 Critical Strikes 7 | . . 2 . 5 Actively Blocked 1 | . . . . 1 Damage Taken 2883 | . . 737 . 2146 Core 1056 | . . 169 . 887 Absorbed by Shields . | . . . . . Redirected to Shielding 91 | . . . . 91 Regen/Repaired (Parts) 210 | . . . 72 138 Core Remaining (%) 66 | 100 . . 32 . Volleys Fired 66 | . . 48 . 18 Largest 3 | . . 2 . 3 Hottest 170 | . . 100 . 170 Shots Fired 136 | . . 93 . 43 Gun 97 | . . 74 . 23 Cannon 34 | . . 16 . 18 Launcher 3 | . . 3 . . Special 2 | . . . . 2 Kinetic 23 | . . 10 . 13 Thermal 100 | . . 72 . 28 Explosive 3 | . . 3 . . Electromagnetic 8 | . . 8 . . Robot Hit Streak 15 | . . 6 . 15 Robot Miss Streak 4 | . . 2 . 4 Penetration Max . | . . . . . Secondary Targets . | . . . . . Shots Hit Robots 57 | . . 27 . 30 Core Hits 19 | . . 13 . 6 Critical Kills . | . . . . . Critical Parts Destroyed . | . . . . . Critical Strikes 2 | . . . . 2 Burn 2 | . . . . 2 Melee Attacks . | . . . . . Impact . | . . . . . Slashing . | . . . . . Piercing . | . . . . . Sneak Attacks . | . . . . . Combat Hostiles . | . . . . . Follow-up Attacks . | . . . . . Damage Inflicted 1121 | . . 579 . 542 Guns 648 | . . 380 . 268 Cannons 272 | . . . . 272 Explosions 199 | . . 199 . . Melee . | . . . . . Ramming 2 | . . . . 2 Kinetic 341 | . . 193 . 148 Thermal 510 | . . 118 . 392 Explosive 199 | . . 199 . . Electromagnetic 69 | . . 69 . . Impact . | . . . . . Slashing . | . . . . . Piercing . | . . . . . Highest Corruption 6 | . . . . 6 Average Corruption 2 | . . . . 2 Corruption Purged . | . . . . . Corruption Blocked . | . . . . . Effects 3 | . . . . 3 Matter Fused 2 | . . . . 2 Energy Discharges 1 | . . . . 1 Overload Shots . | . . . . . Overflow Damage . | . . . . . Projectiles . | . . . . . Explosions . | . . . . . Melee . | . . . . . Knockbacks . | . . . . . Impact . | . . . . . Kinetic . | . . . . . Secondary . | . . . . . Self-Inflicted Damage 14 | . . 13 . 1 Shots 1 | . . 1 . . Rammed 1 | . . . . 1 Targets Rammed 1 | . . . . 1 Kicked . | . . . . . Crushed . | . . . . . Highest Temperature 312 | . . . . 312 Average Temperature 94 | . . . . 94 Received Heat Transfer 741 | . . 84 . 657 Siege Activations . | . . . . . Martial Activations . | . . . . . Shielding Activations . | . . . . . Robots Disrupted . | . . . . . Combat Hostiles . | . . . . . Robots Corrupted . | . . . . . Combat Hostiles . | . . . . . Parts Fried . | . . . . . Impact Corruptions . | . . . . . Robots Melted 2 | . . . . 2 Combat Hostiles 2 | . . . . 2 Parts Melted 4 | . . . . 4 Heat Transferred 1391 | . . 336 . 1055 Parts Sabotaged . | . . . . . Parts Stolen . | . . . . . Parts Stripped . | . . . . . Power Chain Reactions . | . . . . . Alert | -11 -10 -10 -8 -6 ------- Run | Yrd Mat Sub Scr Fac Maximum Alert Level . | . . . . . Low Security (%) 100 | 100 100 . . 100 Level 1 . | . . . . . Level 2 . | . . . . . Level 3 . | . . . . . Level 4 . | . . . . . Level 5 . | . . . . . High Security . | . . . . . Max Security . | . . . . . Peak Influence 30 | . . . . 30 Initial . | . . . . . Average 1 | . . . . 2 Influence Increases 75 | . . . . 75 Destroy 0b10 Robot/C 40 | . . . . 40 Destroy Leader 20 | . . . . 20 Lose Combat Pursuer 15 | . . . . 15 Influence Decreases 60 | . . . . 60 Time Decay 46 | . . . . 46 Lost Part 14 | . . . . 14 Squads Dispatched 2 | . . . . 2 Investigation 1 | . . . . 1 Extermination 1 | . . . . 1 Reinforcement . | . . . . . Assault . | . . . . . Garrison . | . . . . . Intercept . | . . . . . Searches Triggered . | . . . . . Construction Impeded . | . . . . . Haulers Reinforced . | . . . . . Active Scanning Responses . | . . . . . Cargo Convoy Interrupts . | . . . . . Stealth | -11 -10 -10 -8 -6 --------- Run | Yrd Mat Sub Scr Fac Distress Signals 6 | . 2 . . 4 Communications Jammed . | . . . . . Distress Signals . | . . . . . Times Spotted 34 | . 6 9 . 19 Peak Tracking Total 9 | . 4 3 . 9 Tactical Retreats 5 | . . . . 5 ECM-based Alert Blocks 11 | . . . . 11 Traps | -11 -10 -10 -8 -6 ------- Run | Yrd Mat Sub Scr Fac Traps Triggered 1 | . . . . 1 Indirectly . | . . . . . Trap Hack Attempts . | . . . . . Triggered . | . . . . . Disarmed . | . . . . . Reprogrammed . | . . . . . Reused . | . . . . . Traps Extracted . | . . . . . Installed . | . . . . . Triggered . | . . . . . Machines | -11 -10 -10 -8 -6 ---------- Run | Yrd Mat Sub Scr Fac Machines Disabled . | . . . . . Max in Single Turn . | . . . . . Machines Repaired . | . . . . . Machines Dismantled . | . . . . . Machines Sabotaged . | . . . . . Overloaded Fab Kills . | . . . . . Hacking | -11 -10 -10 -8 -6 --------- Run | Yrd Mat Sub Scr Fac Machines Accessed 6 | . 1 1 1 3 Terminals 2 | . 1 . . 1 Fabricators 1 | . . . . 1 Repair Stations 1 | . . . . 1 Recycling Units . | . . . . . Scanalyzers . | . . . . . Garrison Access . | . . . . . Total Hacks 22 | . 3 4 8 7 Successful 16 | . 1 4 8 3 Failed 6 | . 2 . . 4 Catastrophic 2 | . . . . 2 Database Lockouts . | . . . . . Manual . | . . . . . Terminals 6 | . 3 . . 3 Fabricators 2 | . . . . 2 Repair Stations 2 | . . . . 2 Recycling Units . | . . . . . Scanalyzers . | . . . . . Garrison Access . | . . . . . Terminal Hacks 13 | . 1 4 8 . Record 12 | . . 4 8 . Zone Layout 1 | . 1 . . . Fabricator Hacks 1 | . . . . 1 Network Status 1 | . . . . 1 Repair Station Hacks 2 | . . . . 2 Scan Component 1 | . . . . 1 Repair 1 | . . . . 1 Recycling Unit Hacks . | . . . . . Scanalyzer . | . . . . . Garrison Access Hacks . | . . . . . Unauthorized Hacks . | . . . . . Terminals . | . . . . . Fabricators . | . . . . . Repair Stations . | . . . . . Recycling Units . | . . . . . Scanalyzers . | . . . . . Garrison Access . | . . . . . Data Cores Recovered . | . . . . . Used . | . . . . . Hacking Detections 3 | . 1 . . 2 Full Trace Events 2 | . 1 . . 1 Feedback Events . | . . . . . Feedback Blocked . | . . . . . Robot Schematics Acquired . | . . . . . Robots Built . | . . . . . Authchips . | . . . . . Time . | . . . . . Total Robot Build Rating . | . . . . . Part Schematics Acquired . | . . . . . Parts Built . | . . . . . Authchips . | . . . . . Time . | . . . . . Total Part Build Rating . | . . . . . Part Studies Acquired . | . . . . . Parts Repaired 1 | . . . . 1 Time 44 | . . . . 44 Parts Recycled . | . . . . . Recycled Matter . | . . . . . Retrieved Matter . | . . . . . Retrieved Components . | . . . . . Parts Scanalyzed . | . . . . . Part Schematics Acquired . | . . . . . Parts Damaged . | . . . . . Bothacking | -11 -10 -10 -8 -6 ------------ Run | Yrd Mat Sub Scr Fac Used RIF Installer . | . . . . . Robots Hacked . | . . . . . Non-combat . | . . . . . Combat . | . . . . . Robot Hacks Applied . | . . . . . Relay Couplers Released . | . . . . . Fabnet Peak Effective % . | . . . . . Robots Rewired . | . . . . . Allies Hacked . | . . . . . Hacks Repelled . | . . . . . Allies | -11 -10 -10 -8 -6 -------- Run | Yrd Mat Sub Scr Fac Total Allies . | . . . . . Largest Group . | . . . . . Highest-Rated Group . | . . . . . Highest-Rated Ally . | . . . . . Total Orders . | . . . . . Ally Attacks . | . . . . . Total Damage . | . . . . . Kills . | . . . . . Allies Corrupted . | . . . . . Allies Melted . | . . . . . Intel | -11 -10 -10 -8 -6 ------- Run | Yrd Mat Sub Scr Fac Active Infowar (turns) 2192 | . . 880 637 675 Optics 2192 | . . 880 637 675 IFF 557 | . . . . 557 Triangulation 309 | . . . . 309 ECM 404 | . . . . 404 Robot Analysis Total . | . . . . . Derelict Logs Recovered 1 | . . . 1 . Drone Launches . | . . . . . Drone Recoveries . | . . . . . Exploration | -11 -10 -10 -8 -6 ------------- Run | Yrd Mat Sub Scr Fac Turns Passed 2463 | 64 133 880 693 693 Spaces Moved 1786 | 55 128 703 677 223 Core 12 | 9 . . . 3 Treads . | . . . . . Legs . | . . . . . Wheels 1774 | 46 128 703 677 220 Hover . | . . . . . Flight . | . . . . . Fastest Speed 50 | 50 100 100 100 205 Average Speed 119 | 91 100 101 100 257 Slowest Speed 3650 | 100 100 105 100 3650 Overloaded Moves . | . . . . . Propulsion Burnouts . | . . . . . Robots Hopped . | . . . . . Potential Cave-ins . | . . . . . Cave-ins Triggered . | . . . . . Exploration Rate (%) 24 | 4 26 31 54 8 Regions Visited 4 Branch Regions 2 Pre-discovered Areas 1 | . . . 1 . Known Exits Taken . | . . . . . Unknown Exits Taken 4 | 1 1 1 1 . Scrap Searched 2 | . . . 2 . Spaces Dug . | . . . . . Terrain Destroyed 25 | . . 25 . . Melee . | . . . . . Projectile . | . . . . . AOE 25 | . . 25 . . Terrain Rammed . | . . . . . Walls Destroyed . | . . . . . Machines Disabled . | . . . . . Actions | -11 -10 -10 -8 -6 --------- Run | Yrd Mat Sub Scr Fac Total 1993 | 68 135 786 696 308 Wait 67 | . . 14 5 48 Move 1782 | 54 127 702 676 223 Hop . | . . . . . Pick Up 28 | 8 7 7 3 3 Fast Attach 9 | . . 2 3 4 Attach 19 | 6 . 5 . 8 Detach 1 | . . . 1 . Swap 4 | . . 4 . . Drop 16 | . 1 4 8 3 Fire 66 | . . 48 . 18 Melee . | . . . . . Ram 1 | . . . . 1 Kick . | . . . . . Crush . | . . . . . Escape Stasis . | . . . . . Rewire . | . . . . . Trap . | . . . . . Miscellaneous . | . . . . . Route ------- -11/Scrapyard -10/Materials -10/Subcaves (discovered 2 exits: *Scr x2) -8/Scraptown -6/Factory History --------- Turn | Location | Event 6 | -11/Scrapyard | Discovered new exit (range 15) 65 | -11/Scrapyard | Entered Materials 66 | -10/Materials | Met a group of wandering Federalists 190 | -10/Materials | Lost 4 allies 193 | -10/Materials | Discovered new exit (range 6) 198 | -10/Materials | Entered Subcaves 198 | -10/Subcaves | Accompanied by 1 ally 199 | -10/Subcaves | Continued accompanying wandering Federalists (2) 199 | -10/Subcaves | Approached by a straggling Scientist 223 | -10/Subcaves | Ambushed by Subdwellers from Twisted Machinery 283 | -10/Subcaves | Scientist uncovered a shortcut to Scraptown 312 | -10/Subcaves | Build established: Mutant 329 | -10/Subcaves | Visited Clippyterm 332 | -10/Subcaves | Learned Factory fabricator intel 332 | -10/Subcaves | Learned Factory garrison access intel 605 | -10/Subcaves | Ambushed by Subdwellers from Twisted Machinery 1009 | -10/Subcaves | A swath of the cavern ceiling suddenly collapsed 1028 | -10/Subcaves | A Subdweller sparked back to life 1028 | -10/Subcaves | A Subdweller sparked back to life 1028 | -10/Subcaves | A Subdweller sparked back to life 1061 | -10/Subcaves | Core integrity fell below 50% 1078 | -10/Subcaves | Entered Scraptown 1228 | -8/Scraptown | Heard Great Nut preacher, LISTEN AND RECITE! 1234 | -8/Scraptown | Visited Spacefarers 1289 | -8/Scraptown | Visited UFD Registry 1312 | -8/Scraptown | Visited CR-KLE's Repair Center 1319 | -8/Scraptown | CR-KLE repaired 3 parts 1342 | -8/Scraptown | Visited Awakened 1391 | -8/Scraptown | Visited Cave Peace 1432 | -8/Scraptown | Visited Red Mages 1742 | -8/Scraptown | Scanned Subdweller tech in exchange for log data 1745 | -8/Scraptown | Learned location of Quarantine (-2) 1762 | -8/Scraptown | Discovered new exit (range 5) 1771 | -8/Scraptown | Entered Factory 1771 | -6/Factory | Evolved 8 slots: Power x1, Propulsion x1, Utility x5, Weapon x1 1772 | -6/Factory | Loaded intel: 6 fabricator locations 1773 | -6/Factory | Loaded intel: 4 garrison access locations 1906 | -6/Factory | Repaired Arm. Huge Wheel 2101 | -6/Factory | Attached CPS modules to Y-54 Guardian 2267 | -6/Factory | Allied Derelicts emerged from ambush trap array 2317 | -6/Factory | Spotted B-75 Beast 2368 | -6/Factory | Lost 3 allies 2446 | -6/Factory | Core integrity fell below 50% 2455 | -6/Factory | Core integrity fell below 20% 2464 | -6/Factory | Destroyed by B-48 Gladiator with Mace Last Messages --------------- IFF Parser destroyed. Humpback destroyed. System corrupted: Matter fused (-9). ECM Suite destroyed. K-01 Serf collects debris. Critical hit (Smash). Triangulator destroyed. System corrupted by crushing effect (+2). Critical hit (Burn: +37). K-01 Serf collects debris. Visual Processing Unit destroyed. System corrupted by crushing effect (+2). Critical hit (Burn: +37). Knocked back. K-01 Serf collects debris. G-50 Soldier destroyed. K-01 Serf collects debris. R-10 Processor collects Carbon-fiber Leg. K-01 Serf collects debris. System corrupted: Energy discharge (-26). Map ----- +----------------------------------------------------+ | ?????????????????????????# """" # # "" #?? | | ?????????????????????????# ""F" # # #?? | | ????????""?""????????????# # # #?? | | ????????""F""????????????# # # #?? | | ?????????"""?????????????# + # """ #?? | | ?????????????????????????# """ # + """ #?? | | ?????????????????????##### """ # # """ #?? | | ????????????????? ?? # """ # # #?? | | ????????????????# """ #?? ?# ########?? | | ????????????????# """ #?###/#### #????????? | | ????????????????# """ #?# #????????? | | ????????????????# #?# +????????? | | ????????????????# """ #?# #????????? | | ????????????????# """ #?# #????????? | | ????????????????# """ !#?# % #????????? | | ????????????????# #?# ########????????? | | ????????????????########+### #???????????????? | | ????????????????????# #???????????????? | | ????????????????????# +???????????????? | | ????????????????????# #???????????????? | | ????????????????????# #???????????????? | | ????????????????????# #???????????????? | | ????????????????????# R ########???????????????? | | ?????????????######## R g #?? #???????????????? | | ???????? uk^ sggb# #???????????????? | | ???????? @/ #???????????????? | | ???????? % # #???????????????? | | ????????? k # [#???????????????? | | ????????? ^ #? #???????????????? | | ?????????############ #?? #???????????????? | | ????????????????????# #???"" #???????????????? | | ????????????????????# #???"" #???????????????? | | ????????????????????# #????" #???????????????? | | ????????????????????# #????? #???????????????? | | ????????????????????+ u k#??????????????????????? | | ????????????????????# #??????????????????????? | | ????????????????????# #??????????????????????? | | ????????????????????# ???????????????????????? | | ????????????????????# ???????????????????????? | | ????????????????????# ???????????????????????? | | ????????????????????? ???????????????????????? | | ??????????????????????? ???????????????????????? | | ?????????????????????????????????????????????????? | | ?????????????????????????????????????????????????? | | ?????????????????????????????????????????????????? | | ?????????????????????????????????????????????????? | | ?????????????????????????????????????????????????? | | ?????????????????????????????????????????????????? | | ?????????????????????????????????????????????????? | | ?????????????????????????????????????????????????? | +----------------------------------------------------+ Best States ------------- Heat Dissipation 37 Energy Generation 16 Energy Capacity 290 Matter Stores 300 Matter Capacity 300 Sight Range 21 Terrain Scan Density 10 ECM Strength 1 Propulsion Shielding 66 Evasion (%) 50 Item Schematics ----------------- None Robot Schematics ------------------ None Fabricated ------------ Nothing Repaired ---------- Arm. Huge Wheel | 44% | -6/Factory Studied --------- None Alien Tech Used ----------------- None Achievements -------------- Civilization 2243 Nice Directions, Buddy Strength In Numbers Tank Challenges ------------ None Game ------ Seed AccelerationZipReplica Manual? 0 Play Time 00:41:40 Cumulative 26.3 hours Start 2026.08.01 @ 07:41:03 End 2026.08.02 @ 06:34:44 Sessions 5 Manual Loads 0 Difficulty Rogue Special Mode None Game No. 48 Rogue 48 Adventurer 0 Explorer 0 Win Type - Total 0 Types 0/0/0/0/0/0/0/0/0/0 Lore% 12 Gallery% 21 Achievement% 14 Wizard Run 0 Options --------- Layout 1 ASCII 0 Keyboard 0 Movement Numpad Keybinds 0 Fullscreen 1 Font 32/SmallcapsGlow Map View 50x35 Zoom Use 0% Tactical HUD 0 Map Filters NONE Filters NONE Steam 1 RUN: 700ed041-0f80-4d02-908e-39510198d669